fUSD/lending_fUSD_20240907
["ID","MTS","AMOUNT","RATE_DAILY","PERIOD"]
[337507047,1725725445264,-500.0,0.00014998,2]
[337507048,1725725445273,-663.85,0.00014998,2]
[337507049,1725725445283,-663.85,0.00014998,2]
[337507050,1725725445292,-500.0,0.00014998,2]
[337507051,1725725445301,-500.0,0.00014998,2]
[337507052,1725725445311,-500.0,0.00014998,2]
[337507053,1725725445320,-500.0,0.00014998,2]
[337507054,1725725445329,-500.0,0.00014998,2]
[337507057,1725725445338,-500.0,0.00014998,2]
[337507058,1725725445347,-565.17,0.00014998,2]
[337507061,1725725445357,-500.0,0.00014998,2]
[337507062,1725725445366,-500.0,0.00014998,2]
[337507063,1725725445375,-500.0,0.00014998,2]
[337507064,1725725445384,-500.0,0.00014998,2]
[337507065,1725725445394,-500.0,0.00014998,2]
[337507066,1725725445403,-500.0,0.00014998,2]
[337507067,1725725445413,-270.84,0.00014998,2]
[337507068,1725725445422,-500.0,0.00014998,2]
[337507069,1725725445432,-154.28037422,0.00014998,2]
[337507070,1725725445441,-243.29,0.00014998,2]
[337507071,1725725445451,-3557.25,0.00014998,2]
[337507072,1725725445460,-500.0,0.00014998,2]
[337507073,1725725445470,-500.0,0.00014998,2]
[337507074,1725725445480,-500.0,0.00014998,2]
[337507075,1725725445489,-441.05,0.00014998,2]
[337507076,1725725445499,-500.0,0.00014998,2]
[337507077,1725725445517,-500.0,0.00014998,2]
[337507078,1725725445529,-13772.86,0.00014998,2]
[337507079,1725725445541,-13772.86,0.00014998,2]
[337507080,1725725445551,-13772.86,0.00014998,2]
[337507081,1725725445562,-708.83,0.00014998,2]
[337507082,1725725445573,-708.83,0.00014998,2]
[337507083,1725725445583,-13772.86,0.00014998,2]
[337507084,1725725445593,-13772.86,0.00014998,2]
[337507085,1725725445602,-708.83,0.00014998,2]
[337507086,1725725445612,-708.83,0.00014998,2]
[337507087,1725725445622,-708.83,0.00014998,2]
[337507088,1725725445631,-339.275189,0.00014998,2]
[337507089,1725725445641,-339.275189,0.00014998,2]
[337507090,1725725445651,-339.275189,0.00014998,2]
[337507091,1725725445661,-339.275189,0.00014998,2]
[337507092,1725725445670,-339.275189,0.00014998,2]
[337507093,1725725445680,-996.971095,0.00014998,2]
[337507094,1725725445690,-996.971095,0.00014998,2]
[337507095,1725725445699,-996.971095,0.00014998,2]
[337507096,1725725445709,-996.971095,0.00014998,2]
[337507097,1725725445719,-894.44,0.00014998,2]
[337507098,1725725445873,-996.971095,0.00014998,2]
[337507099,1725725445883,-894.44,0.00014998,2]
[337507100,1725725445894,-950.69,0.00014998,2]
[337507101,1725725445904,-950.69,0.00014998,2]
[337507102,1725725445913,-950.69,0.00014998,2]
[337507103,1725725445922,-1031.26,0.00014998,2]
[337507104,1725725445932,-950.69,0.00014998,2]
[337507105,1725725445942,-1031.26,0.00014998,2]
[337507106,1725725445951,-950.69,0.00014998,2]
[337507107,1725725445961,-1031.26,0.00014998,2]
[337507108,1725725445971,-1031.26,0.00014998,2]
[337507109,1725725445980,-1031.26,0.00014998,2]
[337507110,1725725445990,-500.0,0.00014998,2]
[337507111,1725725445999,-500.0,0.00014998,2]
[337507112,1725725446010,-500.0,0.00014998,2]
[337507113,1725725446019,-500.0,0.00014998,2]
[337507114,1725725446029,-500.0,0.00014998,2]
[337507115,1725725446038,-500.0,0.00014998,2]
[337507116,1725725446048,-500.0,0.00014998,2]
[337507117,1725725446058,-576.54,0.00014998,2]
[337507118,1725725446067,-576.54,0.00014998,2]
[337507119,1725725446077,-576.54,0.00014998,2]
[337507120,1725725446087,-576.54,0.00014998,2]
[337507121,1725725446097,-576.54,0.00014998,2]
[337507122,1725725446106,-500.0,0.00014998,2]
[337507123,1725725446116,-500.0,0.00014998,2]
[337507124,1725725446126,-500.0,0.00014998,2]
[337507125,1725725446136,-500.0,0.00014998,2]
[337507126,1725725446145,-500.0,0.00014998,2]
[337507127,1725725446154,-500.0,0.00014998,2]
[337507128,1725725446163,-500.0,0.00014998,2]
[337507129,1725725446172,-151.0,0.00014998,2]
[337507130,1725725446182,-151.0,0.00014998,2]
[337507131,1725725446191,-500.0,0.00014998,2]
[337507132,1725725446201,-500.0,0.00014998,2]
[337507133,1725725446210,-500.0,0.00014998,2]
[337507134,1725725446220,-500.0,0.00014998,2]
[337507135,1725725446229,-500.0,0.00014998,2]
[337507136,1725725446238,-500.0,0.00014998,2]
[337507137,1725725446248,-184.77,0.00014998,2]
[337507138,1725725446258,-500.0,0.00014998,2]
[337507139,1725725446268,-1350.03,0.00014998,2]
[337507140,1725725446278,-500.0,0.00014998,2]
[337507141,1725725446290,-500.0,0.00014998,2]
[337507142,1725725446299,-1350.03,0.00014998,2]
[337507143,1725725446309,-601.68817214,0.00014998,2]
[337507144,1725725446318,-1350.03,0.00014998,2]
[337507145,1725725446327,-1350.03,0.00014998,2]
[337507146,1725725446336,-1350.03,0.00014998,2]
[337507147,1725725446346,-500.0,0.00014998,2]
[337507148,1725725446355,-500.0,0.00014998,2]
[337507149,1725725446364,-740.71,0.00014998,2]
[337507150,1725725446374,-740.71,0.00014998,2]
[337507151,1725725446384,-740.71,0.00014998,2]
[337507152,1725725446394,-740.71,0.00014998,2]
[337507153,1725725446404,-740.71,0.00014998,2]
[337507154,1725725446413,-665.14,0.00014998,2]
[337507155,1725725446423,-665.14,0.00014998,2]
[337507156,1725725446432,-665.14,0.00014998,2]
[337507157,1725725446442,-665.14,0.00014998,2]
[337507158,1725725446451,-665.14,0.00014998,2]
[337507159,1725725446462,-500.0,0.00014998,2]
[337507160,1725725446471,-718.86,0.00014998,2]
[337507161,1725725446481,-718.86,0.00014998,2]
[337507162,1725725446490,-500.0,0.00014998,2]
[337507163,1725725446500,-718.86,0.00014998,2]
[337507164,1725725446510,-718.86,0.00014998,2]
[337507165,1725725446519,-718.86,0.00014998,2]
[337507166,1725725446529,-1106.57,0.00014998,2]
[337507167,1725725446538,-1106.57,0.00014998,2]
[337507168,1725725446548,-1106.57,0.00014998,2]
[337507169,1725725446557,-1106.57,0.00014998,2]
[337507170,1725725446567,-1106.57,0.00014998,2]
[337507171,1725725446576,-500.0,0.00014998,2]
[337507172,1725725446586,-500.0,0.00014998,2]
[337507173,1725725446596,-587.87,0.00014998,2]
[337507174,1725725446606,-587.87,0.00014998,2]
[337507175,1725725446616,-587.87,0.00014998,2]
[337507176,1725725446626,-587.87,0.00014998,2]
[337507177,1725725446636,-500.0,0.00014998,2]
[337507178,1725725446646,-587.87,0.00014998,2]
[337507179,1725725446655,-500.0,0.00014998,2]
[337507180,1725725446665,-3045.1,0.00014998,2]
[337507181,1725725446674,-3045.1,0.00014998,2]
[337507182,1725725446684,-3045.1,0.00014998,2]
[337507183,1725725446694,-3045.1,0.00014998,2]
[337507184,1725725446703,-3045.1,0.00014998,2]
[337507185,1725725446713,-500.0,0.00014998,2]
[337507186,1725725446722,-500.0,0.00014998,2]
[337507187,1725725446731,-1794.06,0.00014998,2]
[337507188,1725725446741,-1794.06,0.00014998,2]
[337507189,1725725446750,-1794.06,0.00014998,2]
[337507190,1725725446761,-1794.06,0.00014998,2]
[337507191,1725725446770,-1794.06,0.00014998,2]
[337507192,1725725446779,-1794.06,0.00014998,2]
[337507193,1725725446789,-500.0,0.00014998,2]
[337507194,1725725446800,-500.0,0.00014998,2]
[337507195,1725725446809,-500.0,0.00014998,2]
[337507196,1725725446823,-500.0,0.00014998,2]
[337507197,1725725446833,-500.0,0.00014998,2]
[337507198,1725725446842,-500.0,0.00014998,2]
[337507199,1725725446852,-236.25,0.00014998,2]
[337507200,1725725446863,-6048.86,0.00014998,2]
[337507201,1725725446873,-6048.86,0.00014998,2]
[337507202,1725725446882,-6048.86,0.00014998,2]
[337507203,1725725446893,-6048.86,0.00014998,2]
[337507204,1725725446902,-6048.86,0.00014998,2]
[337507205,1725725446912,-1727.11,0.00014998,2]
[337507206,1725725446922,-1727.11,0.00014998,2]
[337507207,1725725446931,-1727.11,0.00014998,2]
[337507208,1725725446940,-521.51,0.00014998,2]
[337507209,1725725446950,-1727.11,0.00014998,2]
[337507210,1725725446960,-521.51,0.00014998,2]
[337507211,1725725446970,-1727.11,0.00014998,2]
[337507212,1725725446980,-521.51,0.00014998,2]
[337507213,1725725446990,-1727.11,0.00014998,2]
[337507214,1725725447000,-521.51,0.00014998,2]
[337507215,1725725447011,-521.51,0.00014998,2]
[337507216,1725725447020,-500.0,0.00014998,2]
[337507217,1725725447030,-500.0,0.00014998,2]
[337507218,1725725447039,-500.0,0.00014998,2]
[337507219,1725725447049,-500.0,0.00014998,2]
[337507220,1725725447059,-500.0,0.00014998,2]
[337507221,1725725447068,-1166.88,0.00014998,2]
[337507222,1725725447078,-500.0,0.00014998,2]
[337507223,1725725447088,-1166.88,0.00014998,2]
[337507224,1725725447097,-500.0,0.00014998,2]
[337507225,1725725447107,-500.0,0.00014998,2]
[337507226,1725725447118,-500.0,0.00014998,2]
[337507227,1725725447128,-500.0,0.00014998,2]
[337507228,1725725447137,-500.0,0.00014998,2]
[337507229,1725725447147,-500.0,0.00014998,2]
[337507230,1725725447156,-500.0,0.00014998,2]
[337507231,1725725447166,-500.0,0.00014998,2]
[337507232,1725725447175,-278.76,0.00014998,2]
[337507233,1725725447185,-240.01,0.00014998,2]
[337507234,1725725447195,-2435.23,0.00014998,2]
[337507235,1725725447204,-2435.23,0.00014998,2]
[337507236,1725725447214,-2435.23,0.00014998,2]
[337507237,1725725447223,-2435.23,0.00014998,2]
[337507238,1725725447232,-2435.23,0.00014998,2]
[337507239,1725725447241,-500.0,0.00014998,2]
[337507240,1725725447250,-2435.23,0.00014998,2]
[337507241,1725725447260,-500.0,0.00014998,2]
[337507242,1725725447271,-500.0,0.00014998,2]
[337507243,1725725447280,-651.29,0.00014998,2]
[337507244,1725725447290,-500.0,0.00014998,2]
[337507245,1725725447300,-651.29,0.00014998,2]
[337507246,1725725447310,-500.0,0.00014998,2]
[337507247,1725725447319,-651.29,0.00014998,2]
[337507248,1725725447329,-500.0,0.00014998,2]
[337507249,1725725447338,-651.29,0.00014998,2]
[337507250,1725725447348,-500.0,0.00014998,2]
[337507251,1725725447357,-651.29,0.00014998,2]
[337507252,1725725447367,-651.29,0.00014998,2]
[337507253,1725725447376,-500.0,0.00014998,2]
[337507254,1725725447385,-500.0,0.00014998,2]
[337507255,1725725447395,-151.0,0.00014998,2]
[337507256,1725725447405,-151.0,0.00014998,2]
[337507257,1725725447415,-1083.73,0.00014998,2]
[337507258,1725725447425,-1611.11,0.00014998,2]
[337507259,1725725447435,-1083.73,0.00014998,2]
[337507260,1725725447445,-1611.11,0.00014998,2]
[337507261,1725725447455,-1611.11,0.00014998,2]
[337507262,1725725447465,-1083.73,0.00014998,2]
[337507263,1725725447475,-1611.11,0.00014998,2]
[337507264,1725725447485,-1083.73,0.00014998,2]
[337507265,1725725447495,-1611.11,0.00014998,2]
[337507266,1725725447506,-1083.73,0.00014998,2]
[337507267,1725725447516,-1611.11,0.00014998,2]
[337507268,1725725447526,-702.31,0.00014998,2]
[337507269,1725725447536,-702.31,0.00014998,2]
[337507270,1725725447546,-702.31,0.00014998,2]
[337507271,1725725447556,-702.31,0.00014998,2]
[337507272,1725725447566,-151.0,0.00014998,2]
[337507273,1725725447575,-702.31,0.00014998,2]
[337507274,1725725447585,-702.31,0.00014998,2]
[337507275,1725725447594,-151.0,0.00014998,2]
[337507276,1725725447604,-1562.147949,0.00014998,2]
[337507277,1725725447613,-1562.147949,0.00014998,2]
[337507278,1725725447623,-665.04,0.00014998,2]
[337507279,1725725447632,-665.04,0.00014998,2]
[337507280,1725725447642,-665.04,0.00014998,2]
[337507281,1725725447651,-665.04,0.00014998,2]
[337507282,1725725447660,-665.04,0.00014998,2]
[337507283,1725725447670,-1562.147949,0.00014998,2]
[337507284,1725725447679,-1562.147949,0.00014998,2]
[337507285,1725725447689,-500.0,0.00014998,2]
[337507286,1725725447699,-500.0,0.00014998,2]
[337507287,1725725447709,-500.0,0.00014998,2]
[337507288,1725725447718,-602.44,0.00014998,2]
[337507289,1725725447728,-602.44,0.00014998,2]
[337507290,1725725447738,-602.44,0.00014998,2]
[337507291,1725725447748,-602.44,0.00014998,2]
[337507292,1725725447759,-602.44,0.00014998,2]
[337507293,1725725447769,-4217.42,0.00014998,2]
[337507294,1725725447779,-4217.42,0.00014998,2]
[337507295,1725725447890,-4217.42,0.00014998,2]
[337507296,1725725447902,-4217.42,0.00014998,2]
[337507297,1725725447912,-500.0,0.00014998,2]
[337507298,1725725447922,-4217.42,0.00014998,2]
[337507299,1725725447932,-500.0,0.00014998,2]
[337507300,1725725447942,-4217.42,0.00014998,2]
[337507301,1725725447951,-500.0,0.00014998,2]
[337507302,1725725447960,-500.0,0.00014998,2]
[337507303,1725725447971,-500.0,0.00014998,2]
[337507304,1725725447980,-2562.45,0.00014998,2]
[337507305,1725725447989,-2562.45,0.00014998,2]
[337507306,1725725447998,-2562.45,0.00014998,2]
[337507307,1725725448008,-2562.45,0.00014998,2]
[337507308,1725725448018,-2562.45,0.00014998,2]
[337507309,1725725448027,-2562.45,0.00014998,2]
[337507310,1725725448037,-538.12,0.00014998,2]
[337507311,1725725448046,-538.12,0.00014998,2]
[337507312,1725725448055,-538.12,0.00014998,2]
[337507313,1725725448065,-538.12,0.00014998,2]
[337507314,1725725448074,-538.12,0.00014998,2]
[337507315,1725725448083,-1352.15,0.00014998,2]
[337507316,1725725448093,-1352.15,0.00014998,2]
[337507317,1725725448102,-1352.15,0.00014998,2]
[337507318,1725725448111,-1352.15,0.00014998,2]
[337507319,1725725448120,-1352.15,0.00014998,2]
[337507320,1725725448130,-1352.15,0.00014998,2]
[337507321,1725725448139,-500.0,0.00014998,2]
[337507322,1725725448149,-645.28,0.00014998,2]
[337507323,1725725448158,-1183.93,0.00014998,2]
[337507324,1725725448168,-635.13,0.00014998,2]
[337507325,1725725448177,-1183.93,0.00014998,2]
[337507326,1725725448186,-635.13,0.00014998,2]
[337507327,1725725448196,-2590.3,0.00014998,2]
[337507328,1725725448205,-1183.93,0.00014998,2]
[337507329,1725725448215,-635.13,0.00014998,2]
[337507330,1725725448224,-2590.3,0.00014998,2]
[337507331,1725725448233,-635.13,0.00014998,2]
[337507332,1725725448243,-2590.3,0.00014998,2]
[337507333,1725725448252,-1183.93,0.00014998,2]
[337507334,1725725448262,-635.13,0.00014998,2]
[337507335,1725725448271,-2590.3,0.00014998,2]
[337507336,1725725448280,-1183.93,0.00014998,2]
[337507337,1725725448289,-2590.3,0.00014998,2]
[337507338,1725725448299,-1843.92,0.00014998,2]
[337507339,1725725448309,-2590.3,0.00014998,2]
[337507340,1725725448318,-1843.92,0.00014998,2]
[337507341,1725725448328,-1843.92,0.00014998,2]
[337507342,1725725448337,-1843.92,0.00014998,2]
[337507343,1725725448347,-1843.92,0.00014998,2]
[337507344,1725725448356,-500.0,0.00014998,2]
[337507345,1725725448366,-1843.92,0.00014998,2]
[337507346,1725725448375,-500.0,0.00014998,2]
[337507347,1725725448385,-1168.13,0.00014998,2]
[337507348,1725725448394,-1168.13,0.00014998,2]
[337507349,1725725448403,-1168.13,0.00014998,2]
[337507350,1725725448412,-1168.13,0.00014998,2]
[337507351,1725725448422,-2459.72,0.00014998,2]
[337507352,1725725448432,-1168.13,0.00014998,2]
[337507353,1725725448441,-2459.72,0.00014998,2]
[337507354,1725725448451,-1168.13,0.00014998,2]
[337507355,1725725448461,-2459.72,0.00014998,2]
[337507356,1725725448470,-2459.72,0.00014998,2]
[337507357,1725725448480,-500.0,0.00014998,2]
[337507358,1725725448489,-2459.72,0.00014998,2]
[337507359,1725725448499,-500.0,0.00014998,2]
[337507360,1725725448509,-2459.72,0.00014998,2]
[337507361,1725725448518,-500.0,0.00014998,2]
[337507362,1725725448527,-500.0,0.00014998,2]
[337507363,1725725448537,-500.0,0.00014998,2]
[337507364,1725725448546,-500.0,0.00014998,2]
[337507365,1725725448556,-500.0,0.00014998,2]
[337507366,1725725448566,-500.0,0.00014998,2]
[337507367,1725725448575,-500.0,0.00014998,2]
[337507368,1725725448584,-500.0,0.00014998,2]
[337507369,1725725448594,-8378.39,0.00014998,2]
[337507370,1725725448604,-8378.39,0.00014998,2]
[337507371,1725725448614,-8378.39,0.00014998,2]
[337507372,1725725448624,-2902.76,0.00014998,2]
[337507373,1725725448634,-8378.39,0.00014998,2]
[337507374,1725725448643,-2902.76,0.00014998,2]
[337507375,1725725448653,-8378.39,0.00014998,2]
[337507376,1725725448663,-2902.76,0.00014998,2]
[337507377,1725725448672,-8378.39,0.00014998,2]
[337507378,1725725448682,-2902.76,0.00014998,2]
[337507379,1725725448691,-2902.76,0.00014998,2]
[337507380,1725725448700,-2902.76,0.00014998,2]
[337507381,1725725448710,-157.179605,0.00014998,2]
[337507382,1725725448720,-157.179605,0.00014998,2]
[337507383,1725725448729,-931.16,0.00014998,2]
[337507384,1725725448738,-157.179605,0.00014998,2]
[337507385,1725725448748,-931.16,0.00014998,2]
[337507386,1725725448758,-931.16,0.00014998,2]
[337507387,1725725448767,-931.16,0.00014998,2]
[337507388,1725725448777,-931.16,0.00014998,2]
[337507389,1725725448786,-500.0,0.00014998,2]
[337507390,1725725448795,-267.458192,0.00014998,2]
[337507391,1725725448804,-500.0,0.00014998,2]
[337507392,1725725448817,-267.458192,0.00014998,2]
[337507393,1725725448827,-500.0,0.00014998,2]
[337507394,1725725448836,-267.458192,0.00014998,2]
[337507395,1725725448845,-500.0,0.00014998,2]
[337507396,1725725448855,-267.458192,0.00014998,2]
[337507397,1725725448865,-500.0,0.00014998,2]
[337507398,1725725448874,-1494.43,0.00014998,2]
[337507399,1725725448883,-267.458192,0.00014998,2]
[337507400,1725725448892,-1494.43,0.00014998,2]
[337507401,1725725448901,-1494.43,0.00014998,2]
[337507402,1725725448910,-1494.43,0.00014998,2]
[337507403,1725725448920,-1494.43,0.00014998,2]
[337507404,1725725448929,-1494.43,0.00014998,2]
[337507405,1725725448938,-500.0,0.00014998,2]
[337507406,1725725448947,-500.0,0.00014998,2]
[337507407,1725725448957,-1900.6,0.00014998,2]
[337507408,1725725448966,-1900.6,0.00014998,2]
[337507409,1725725448975,-1256.1412302,0.00014998,2]
[337507410,1725725465122,564.5,0.00012276,2]
[337507411,1725725514908,50000.0,0.00031251,30]
[337507412,1725725519615,50000.0,0.00031251,31]
[337507413,1725725527979,1405.8639,0.00012927,2]
[337507414,1725725534107,50000.0,0.00031251,32]
[337507415,1725725537559,50000.0,0.00031251,33]
[337507416,1725725540860,50000.0,0.00031251,34]
[337507417,1725725544724,50000.0,0.00031251,35]
[337507418,1725725548209,50000.0,0.00031251,36]
[337507419,1725725551671,50000.0,0.00031251,37]
[337507420,1725725555103,50000.0,0.00031251,38]
[337507421,1725725558678,50000.0,0.00031251,39]
[337507422,1725726011205,562.84,0.00011213,2]
[337507423,1725726082418,500.0,0.00031256,30]
[337507424,1725726089682,500.0,0.00031256,30]
[337507425,1725726119376,50000.0,0.00031256,30]
[337507426,1725726119459,499.999999,0.00031256,30]
[337507427,1725726122543,50000.0,0.00031256,31]
[337507428,1725726126386,50000.0,0.00031256,32]
[337507429,1725726129798,50000.0,0.00031256,33]
[337507430,1725726133125,50000.0,0.00031256,34]
[337507431,1725726136516,50000.0,0.00031256,35]
[337507432,1725726140032,50000.0,0.00031256,36]
[337507433,1725726143159,50000.0,0.00031256,37]
[337507434,1725726146401,50000.0,0.00031256,38]
[337507435,1725726150164,50000.0,0.00031256,39]
[337507436,1725726250205,500.0,0.00031256,30]
[337507437,1725726257535,500.0,0.00031256,30]
[337507438,1725726330649,1040.0,0.000101,2]
[337507443,1725726352863,13132.15288432,0.00010988,2]
[337507444,1725726352886,25000.0,0.00010988,2]
[337507445,1725726352909,3017.40414609,0.00010988,2]
[337507463,1725726515550,302.62586708,0.00012993,2]
[337507464,1725726516751,2948.02754917,0.00010998,2]
[337507475,1725726573587,534.69,0.000112,2]
[337507487,1725726631780,-481.470523,0.00013093,2]
[337507489,1725726631792,-900.0,0.00013093,2]
[337507491,1725726631838,-1800.0,0.00013093,2]
[337507492,1725726631898,-369.0,0.00013093,2]
[337507493,1725726631910,-446.45853724,0.00013093,2]
[337507494,1725726631960,-766.71121484,0.00013093,2]
[337507495,1725726632156,-1437.62195802,0.00013093,2]
[337507496,1725726632172,-17698.7377669,0.00013093,2]
[337507497,1725726632182,-755.66,0.00013103,2]
[337507498,1725726632191,-250.0,0.00013109,2]
[337507499,1725726632201,-217.21,0.00013112,2]
[337507500,1725726632211,-329.27,0.00013112,2]
[337507501,1725726632221,-1136.15092525,0.00013112,2]
[337507504,1725726632230,-400.0,0.00013113,2]
[337507507,1725726632239,-600.0,0.00013115,2]
[337507509,1725726632248,-156.79,0.00013118,2]
[337507511,1725726632258,-667.47,0.00013118,2]
[337507512,1725726632268,-250.0,0.00013125,2]
[337507513,1725726632277,-265.12,0.00013133,2]
[337507514,1725726632286,-499.99,0.00013143,2]
[337507515,1725726632295,-5348.55,0.00013143,2]
[337507516,1725726632307,-250.0,0.00013159,2]
[337507517,1725726632317,-1120.83,0.00013171,2]
[337507518,1725726632326,-2000.0,0.00013185,2]
[337507519,1725726632335,-167.89,0.00013199,2]
[337507520,1725726632345,-534.69,0.00013464,2]
[337507521,1725726632354,-178.96,0.00013699,2]
[337507522,1725726632363,-150.0,0.00013699,2]
[337507523,1725726632372,-173.71,0.00013699,2]
[337507524,1725726632381,-160.66,0.00013877,2]
[337507525,1725726632390,-160.66,0.00013881,2]
[337507526,1725726632399,-160.66,0.00013884,2]
[337507527,1725726632408,-160.66,0.00013888,2]
[337507528,1725726632418,-160.66,0.00013892,2]
[337507529,1725726632427,-160.66,0.00013895,2]
[337507530,1725726632436,-160.66,0.00013899,2]
[337507531,1725726632445,-150.0,0.00013899,2]
[337507532,1725726632455,-160.66,0.00013902,2]
[337507533,1725726632464,-160.66,0.00013906,2]
[337507534,1725726632473,-160.66,0.0001391,2]
[337507535,1725726632482,-160.66,0.00013913,2]
[337507536,1725726632491,-160.66,0.00013917,2]
[337507537,1725726632500,-160.66,0.00013921,2]
[337507538,1725726632509,-160.66,0.00013924,2]
[337507539,1725726632518,-160.66,0.00013928,2]
[337507540,1725726632528,-160.66,0.00013932,2]
[337507541,1725726632537,-160.66,0.00013935,2]
[337507542,1725726632546,-160.66,0.00013939,2]
[337507543,1725726632556,-160.66,0.00013943,2]
[337507544,1725726632565,-160.66,0.00013946,2]
[337507545,1725726632573,-169.19,0.00014047,2]
[337507546,1725726632582,-150.0,0.00014059,2]
[337507547,1725726632592,-168.59,0.0001406,2]
[337507548,1725726632601,-150.0,0.0001442,2]
[337507549,1725726632611,-67325.31261914,0.00014594,2]
[337507550,1725726632623,-557.13248086,0.00014594,2]
[337507551,1725726632632,-398.24259273,0.000146,2]
[337507552,1725726632643,-933.22026013,0.000146,2]
[337507553,1725726632653,-1451.1123,0.00014694,2]
[337507554,1725726632662,-5376.5516,0.00014694,2]
[337507555,1725726632671,-1266.13408987,0.00014694,2]
[337507556,1725726632682,-593.184,0.00014694,2]
[337507557,1725726632697,-640.68191013,0.00014694,2]
[337507558,1725726632707,-7500.0,0.00014694,2]
[337507559,1725726632716,-1773.2494441,0.00014694,2]
[337507560,1725726632725,-1773.24944403,0.00014717,2]
[337507561,1725726632735,-1773.24944403,0.0001474,2]
[337507562,1725726632744,-400.0,0.00014752,2]
[337507563,1725726632753,-600.0,0.00014754,2]
[337507564,1725726632762,-1773.24944403,0.00014763,2]
[337507565,1725726632771,-265.12,0.00014775,2]
[337507566,1725726632780,-150.0,0.0001478,2]
[337507567,1725726632790,-163.45,0.00014784,2]
[337507568,1725726632799,-237.4765173,0.00014784,2]
[337507569,1725726632808,-1773.24944403,0.00014786,2]
[337507570,1725726632817,-536.83810701,0.00014793,2]
[337507571,1725726632826,-243.86322988,0.00014793,2]
[337507572,1725726632836,-500.0,0.00014794,2]
[337507573,1725726632845,-500.0,0.00014794,2]
[337507574,1725726632853,-527.91847357,0.00014794,2]
[337507575,1725726632862,-500.0,0.00014794,2]
[337507576,1725726632871,-500.0,0.00014794,2]
[337507577,1725726632880,-500.0,0.00014794,2]
[337507578,1725726632889,-500.0,0.00014794,2]
[337507579,1725726632898,-548.28,0.00014794,2]
[337507580,1725726632908,-500.0,0.00014794,2]
[337507581,1725726632917,-500.0,0.00014794,2]
[337507582,1725726632926,-500.0,0.00014794,2]
[337507583,1725726632935,-500.0,0.00014794,2]
[337507584,1725726632944,-500.0,0.00014794,2]
[337507585,1725726632954,-500.0,0.00014794,2]
[337507586,1725726632963,-183.879101,0.00014794,2]
[337507587,1725726632973,-500.0,0.00014794,2]
[337507588,1725726632982,-500.0,0.00014794,2]
[337507589,1725726632992,-500.0,0.00014794,2]
[337507590,1725726633001,-350.0787364,0.00014794,2]
[337507591,1725726633010,-500.0,0.00014794,2]
[337507592,1725726633020,-500.0,0.00014794,2]
[337507593,1725726633029,-500.0,0.00014794,2]
[337507594,1725726633039,-500.0,0.00014794,2]
[337507595,1725726633048,-500.0,0.00014794,2]
[337507596,1725726633058,-500.0,0.00014794,2]
[337507597,1725726633068,-500.0,0.00014794,2]
[337507598,1725726633077,-500.0,0.00014794,2]
[337507599,1725726633086,-500.0,0.00014794,2]
[337507600,1725726633096,-500.0,0.00014794,2]